[Event "CCT Chessable Masters Playoffs 2025"]
[Site "Online"]
[Date "2025.02.19"]
[Round "53"]
[White "Duda, Jan-Krzysztof"]
[Black "Yu, Yangyi"]
[Result "1-0"]
[Annotator "TA"]
[ECO "C44"]
[WhiteElo "2739"]
[BlackElo "2715"]
[PlyCount "199"]
[EventDate "2025.02.13"]
[EventType "k.o."]
[EventCountry "NET"]
[SourceTitle "playchess.com"]
[Source "ChessBase"]
[SourceQuality "1"]
[TimeControl "600"]

{[%evp 10,199,0,10,15,-18,-2,-32,-29,-33,-10,-29,-26,-17,-12,-25,-4,-36,-22,-38,0,0,0,0,16,25,12,0,0,0,-6,-9,-11,-25,-23,-25,-22,-74,0,0,5,2,22,19,85,79,77,91,128,98,115,77,134,147,141,159,161,157,227,232,349,300,288,303,292,111,111,111,111,82,111,111,116,116,116,111,106,0,119,111,112,112,112,107,111,97,105,73,88,72,72,72,72,74,87,87,105,99,99,99,99,99,99,0,105,0,99,87,99,99,99,87,105,87,99,99,105,99,99,0,105,87,99,99,99,99,99,99,99,99,99,99,99,99,99,99,99,99,99,99,99,87,88,45,90,80,80,80,105,80,105,80,105,0,80,80,93,93,122,122,193,109,122,122,122,122,122,112,122,112,112,112,122,112,112,112,112,112,112,0,112,112,112,112,112,112,112,99,99,99,112,99]} 1. e4 {[%emt 0:00:01]} e5 {[%emt 0:00:05]} 2. Nf3 {[%emt 0:00:01]} Nf6 {[%emt 0:00:04]} 3. d3 {[%emt 0:00:01]} Nc6 {[%emt 0:00:07]} 4. Be2 {[%emt 0:00:03]} Bc5 {[%emt 0:00:13]} 5. O-O {[%emt 0:00:02]} d6 {[%emt 0:00:01]} 6. c3 {[%emt 0:00:03]} a5 {[%emt 0:00:01] C44: Ponziani Opening and Scotch Gambit.} 7. Nbd2 {[%emt 0:00:25]} O-O {[%emt 0:00:06]} 8. h3 $5 {[%emt 0:00:01][%mdl 4] A promising side line.} h6 {[%emt 0:00:22] Black is slightly better.} 9. Re1 {[%emt 0:00:02]} Re8 {[%emt 0:00:07]} 10. Nf1 {[%emt 0:00:01]} a4 $146 {[%emt 0:00:11]} ({Predecessor:} 10... Ba7 11. Ng3 d5 12. b3 Be6 13. a3 Qd7 14. Bf1 Rad8 15. Qc2 d4 16. Bb2 b5 17. cxd4 Bxd4 18. Nxd4 Nxd4 19. Bxd4 Qxd4 20. Qxc7 {1-0 Felgaer,R (2563)-Arnold,M (2283) Titled Tuesday intern op 13th Aug Early blitz 2024 (1)}) 11. Ng3 {[%emt 0:00:02]} Bb6 {[%emt 0:00:06]} 12. Bf1 {[%emt 0:00:14]} d5 {[%emt 0:00:14]} 13. Qc2 {[%emt 0:00:06]} Be6 {[%emt 0:00:07]} 14. Bd2 {[%emt 0:00:04]} Qd7 {[%emt 0:00:08]} 15. b4 {[%emt 0:00:07]} axb3 {[%emt 0:00:04]} 16. axb3 {[%emt 0:00:01][%cal Ba2b3,Bb3b4,Bb4b5][%mdl 32]} Qd6 {[%emt 0:01:17]} 17. b4 {[%emt 0:00:36] Prevents Qc5} d4 {[%emt 0:00:06]} 18. Qb2 {[%emt 0:00:03]} dxc3 {[%emt 0:00:39]} 19. Bxc3 {[%emt 0:00:00][%cal Rf3e5]} Nd7 {[%emt 0:00:08]} 20. b5 {[%emt 0:00:29]} Nd4 {[%emt 0:00:02]} 21. Nxd4 {[%emt 0:00:01]} exd4 {[%emt 0:00:23]} 22. Bd2 {[%emt 0:00:02]} Nc5 {[%emt 0:00:03]} 23. Nf5 {[%emt 0:00:45] [#]} (23. Ra3 $1 $11) 23... Bxf5 {[%emt 0:00:23]} (23... Qd7 $1 $17) 24. exf5 $11 {[%emt 0:00:00]} Rad8 {[%emt 0:00:12]} 25. Qa2 {[%emt 0:00:42]} (25. Rxe8+ {simplifies} Rxe8 26. Qb1 Qd5 27. g4) 25... Qf6 {[%emt 0:00:26]} 26. g4 {[%emt 0:00:21]} Qd6 {[%emt 0:00:01]} (26... h5 $11) 27. Qc4 $16 {[%emt 0:00:14]} Nd7 {[%emt 0:01:32]} 28. Bg2 {[%emt 0:00:15][%cal Bf1g2,Bg2b7,Bb7d5][%mdl 32] Black is weak on the light squares} Ne5 {[%emt 0:00:18]} 29. Qb3 {[%emt 0:00:02]} Rb8 {[%emt 0:00:09]} 30. Rac1 {[%emt 0:02:26]} Bc5 {[%emt 0:00:14] Wards off Bb4} (30... Nd7 $142) 31. Re4 {[%emt 0:00:09]} Nd7 {[%emt 0:00:36]} 32. Rxe8+ {[%emt 0:00:17]} Rxe8 {[%emt 0:00:00]} 33. Bxb7 {[%emt 0:00:01]} Bb6 {[%emt 0:00:10]} (33... Re7 $16 34. Bf3 Qf6) 34. Bd5 $18 {[%emt 0:00:08]} Rf8 {[%emt 0:00:30]} (34... Ne5 $142 35. Kg2 Qf6) 35. Rc6 {[%emt 0:00:21]} Qe5 {[%emt 0:00:08]} 36. Bb4 {[%emt 0:00:18] Against Nc5. A strong pair of Bishops.} Nf6 {[%emt 0:00:00]} 37. Rxf6 {[%emt 0:00:20]} (37. Bc4 $18 {and the rest is easy.}) 37... Qxf6 $16 {[%emt 0:00:06]} 38. Bxf8 {[%emt 0:00:01]} Kxf8 $18 {[%emt 0:00:00][%mdl 4096] Endgame KQB-KQB. White is a pawn up.} 39. Qc4 {[%emt 0:00:12]} (39. Qa3+ Qe7 40. Qa8+ Qe8 41. Qa2) 39... Ke7 {[%emt 0:00:07]} 40. Kg2 {[%emt 0:00:01] White has more active pieces.} Ke8 {[%emt 0:00:02]} 41. Qa2 {[%emt 0:00:09]} Ke7 {[%emt 0:00:06]} 42. Qe2+ {[%emt 0:00:09]} (42. Qa8 Qd6 43. Bc4 Qf6 44. Qd5) 42... Kf8 {[%emt 0:00:01]} 43. Qa2 {[%emt 0:00:02]} (43. Bc6 $16 {[%csl Gc6][%cal Re2e8]} Qe7 44. Qa2) 43... Qe7 {[%emt 0:00:01]} (43... Ke7 $1 $11) 44. Bc6 {[%emt 0:00:03] White wants to mate with Qa8+.} Qd8 {[%emt 0:00:02]} 45. Qa3+ {[%emt 0:00:01]} (45. Kf1 {is interesting.} Ke7 46. Bd5 Qe8 47. Qc4) 45... Kg8 {[%emt 0:00:02]} 46. Qc1 {[%emt 0:00:01]} Qe7 {[%emt 0:00:01]} 47. Qf4 {[%emt 0:00:01]} Bc5 {[%emt 0:00:01]} 48. Qf3 {[%emt 0:00:01]} Bd6 {[%emt 0:00:00]} 49. Qd5 {[%emt 0:00:02]} Qe5 {[%emt 0:00:01]} 50. Qxe5 {[%emt 0:00:00]} Bxe5 $16 {[%emt 0:00:00] KB-KB. White is a pawn up.} 51. Kf3 {[%emt 0:00:00]} Kf8 {[%emt 0:00:01]} 52. Ke4 {[%emt 0:00:01]} f6 {[%emt 0:00:01]} 53. Bd5 {[%emt 0:00:02]} Ke7 {[%emt 0:00:01]} 54. Bb7 {[%emt 0:00:01]} Kf8 {[%emt 0:00:01]} 55. Ba8 {[%emt 0:00:00]} Ke7 {[%emt 0:00:01]} 56. Bc6 {[%emt 0:00:00]} (56. Kd5 $16) 56... Kd8 {[%emt 0:00:00]} (56... Kf8 $11) 57. Bd5 {[%emt 0:00:01]} Ke7 {[%emt 0:00:00]} 58. Be6 {[%emt 0:00:00]} Kd8 {[%emt 0:00:01]} 59. Bg8 {[%emt 0:00:00]} Ke7 {[%emt 0:00:00]} 60. Bb3 {[%emt 0:00:01]} Kd8 {[%emt 0:00:00]} 61. Ba2 {[%emt 0:00:00]} Ke7 {[%emt 0:00:01]} 62. Bb1 {[%emt 0:00:00]} Kd8 {[%emt 0:00:00]} 63. Bc2 {[%emt 0:00:01]} Ke7 {[%emt 0:00:00]} 64. Bb3 {[%emt 0:00:00]} Kd8 $1 {[%emt 0:00:01]} 65. Bc4 {[%emt 0:00:00]} Ke7 {[%emt 0:00:00]} 66. f3 {[%emt 0:00:01]} Kd8 {[%emt 0:00:00]} 67. Bd5 {[%emt 0:00:00]} Ke7 {[%emt 0:00:01]} 68. Bc6 {[%emt 0:00:00]} Kd8 {[%emt 0:00:00]} 69. Ba8 {[%emt 0:00:01]} Ke7 {[%emt 0:00:00]} 70. Bb7 {[%emt 0:00:00]} Kd8 {[%emt 0:00:01]} 71. Ba6 {[%emt 0:00:00]} Ke7 {[%emt 0:00:00]} 72. Bc8 {[%emt 0:00:01]} Kd8 {[%emt 0:00:00]} 73. Be6 {[%emt 0:00:00]} Ke7 {[%emt 0:00:01]} 74. Bg8 {[%emt 0:00:00]} Kd8 {[%emt 0:00:00]} 75. Bb3 {[%emt 0:00:01]} Ke7 {[%emt 0:00:00]} 76. Bd5 {[%emt 0:00:01]} Kd8 {[%emt 0:00:01]} 77. h4 {[%emt 0:00:00]} Ke7 {[%emt 0:00:00]} 78. Bc6 {[%emt 0:00:01]} Kd8 {[%emt 0:00:00]} 79. Bb7 {[%emt 0:00:01]} Ke7 {[%emt 0:00:01]} 80. Ba8 {[%emt 0:00:00]} Kd8 {[%emt 0:00:00]} 81. Bd5 {[%emt 0:00:01]} Ke7 $1 {[%emt 0:00:00]} 82. Bg8 {[%emt 0:00:00]} Bd6 {[%emt 0:00:01]} 83. Kxd4 {[%emt 0:00:01]} Kd8 {[%emt 0:00:00]} 84. Kd5 {[%emt 0:00:01][%cal Ob5b6] b6! is the strong threat.} Be5 {[%emt 0:00:00] [#]} (84... Kd7 $16 {is a better defense.}) 85. Kc6 {[%emt 0:00:01]} (85. Ke6 $1 $18 {[%cal Re6f7]}) 85... Bg3 {[%emt 0:00:00]} 86. h5 {[%emt 0:00:01]} Bf2 {[%emt 0:00:01]} 87. Be6 {[%emt 0:00:00]} Be3 {[%emt 0:00:00]} 88. Kd5 {[%emt 0:00:00]} Bf2 {[%emt 0:00:00]} 89. Kc4 {[%emt 0:00:00]} Ke7 {[%emt 0:00:00]} 90. Bd5 {[%emt 0:00:01]} Kd8 {[%emt 0:00:01]} 91. Bc6 {[%emt 0:00:00]} Ke7 {[%emt 0:00:00]} 92. d4 {[%emt 0:00:00]} Kd6 {[%emt 0:00:00]} 93. Be4 {[%emt 0:00:01]} Be3 {[%emt 0:00:00]} 94. Bc6 {[%emt 0:00:00]} ({White should play} 94. Kc3 $16) 94... Bf4 {[%emt 0:00:00]} (94... Bf2 $11 {remains equal.}) 95. Kd3 {[%emt 0:00:01] White is better.} Bg3 {[%emt 0:00:01]} 96. Ke4 {[%emt 0:00:00]} Be1 {[%emt 0:00:00]} 97. Bd5 {[%emt 0:00:01]} Ba5 {[%emt 0:00:00]} 98. Be6 {[%emt 0:00:00]} Bb6 {[%emt 0:00:00]} 99. Bg8 {[%emt 0:00:01]} Ba5 100. Bf7 {[%emt 0:00:00] Weighted Error Value: White=0.20 (precise) /Black=0.21 (precise)   Missed win:     	White=1     	---        Mistake:       	White=5     	Black=9      Inaccurate:     	White=6     	Black=5      OK:         	White=30    	Black=24     Best:        	White=1     	Black=5      Strong:       	---       	Black=2} 1-0

[Event "CCT Chessable Masters Playoffs 2025"]
[Site "Online"]
[Date "2025.02.19"]
[Round "53"]
[White "Yu, Yangyi"]
[Black "Duda, Jan-Krzysztof"]
[Result "1-0"]
[Annotator "TA"]
[ECO "D36"]
[WhiteElo "2715"]
[BlackElo "2739"]
[PlyCount "81"]
[EventDate "2025.02.13"]
[EventType "k.o."]
[EventCountry "NET"]
[SourceTitle "playchess.com"]
[Source "ChessBase"]
[SourceQuality "1"]
[TimeControl "600"]

{[%evp 21,81,15,18,22,15,17,26,7,25,-2,0,-9,252,258,268,257,271,267,278,285,264,265,271,256,279,302,324,295,321,311,315,325,328,315,333,316,397,421,421,430,428,420,393,269,302,307,437,423,440,425,421,393,5601,5289,845,774,29987,29988,29991,29992,29992,29987]} 1. d4 {[%emt 0:00:02]} Nf6 {[%emt 0:00:04]} 2. c4 {[%emt 0:00:01]} e6 {[%emt 0:00:00]} 3. Nc3 {[%emt 0:00:02]} d5 {[%emt 0:00:01]} 4. cxd5 {[%emt 0:00:04]} exd5 {[%emt 0:00:00]} 5. Bg5 {[%emt 0:00:01]} c6 {[%emt 0:00:01]} 6. Qc2 {[%emt 0:00:03]} Be7 {[%emt 0:00:02]} 7. e3 {[%emt 0:00:02]} Nbd7 {[%emt 0:00:04]} 8. Bd3 {[%emt 0:00:02]} h6 {[%emt 0:00:11]} 9. Bh4 {[%emt 0:00:13]} Nh5 {[%emt 0:00:01]} 10. Bxe7 {[%emt 0:00:04]} Qxe7 {[%emt 0:00:00]} 11. Nge2 {[%emt 0:00:04]} Nb6 {[%emt 0:00:05]} 12. O-O {[%emt 0:00:06] D36: Queen's Gambit Declined: Exchange Variation: Main line (5 Bg5 c6 6 Qc2).} O-O {[%emt 0:00:12]} 13. Rae1 {[%emt 0:00:13]} Bd7 {[%emt 0:00:04]} 14. a3 $5 {[%emt 0:00:21][%mdl 4] White has an edge. Exploring less charted territory.} Rae8 {[%emt 0:00:36]} 15. Qd2 $146 {[%emt 0:00:56]} (15. Ng3 Nxg3 16. hxg3 Qg5 17. Ne2 Nc8 18. Nf4 Nd6 19. Nh3 Qf6 20. Nf4 Bf5 21. f3 Bxd3 22. Qxd3 {1-0 Tsvetkov,A (2394)-Ambartsumova,K (2382) Titled Tuesday intern op 02nd Feb blitz 2021 (2)}) 15... Qg5 {[%emt 0:00:09]} 16. Nf4 {[%emt 0:00:17]} Bf5 $2 {[%emt 0:00:16][%mdl 8192] [#]} (16... Nxf4 $11 {and Black has nothing to worry.} 17. exf4 Qd8) 17. h4 $1 $18 {[%emt 0:00:05][%mdl 512]} Qxh4 {[%emt 0:00:19] ...Nxf4 is the strong threat.} (17... Qg4 18. Be2) 18. Bxf5 {[%emt 0:00:03]} Nc4 {[%emt 0:00:06]} 19. Qc1 {[%emt 0:00:30]} Nxf4 {[%emt 0:00:04]} 20. exf4 {[%emt 0:00:03]} Qf6 {[%emt 0:00:01]} 21. Bd3 {[%emt 0:00:20]} Qxd4 {[%emt 0:00:03]} 22. Rd1 {[%emt 0:00:06][%cal Od3h7]} Kh8 {[%emt 0:00:28]} 23. Be2 {[%emt 0:00:43]} Qf6 {[%emt 0:00:12]} 24. Bxc4 {[%emt 0:00:03]} dxc4 {[%emt 0:00:01]} 25. Rd7 {[%emt 0:00:06]} Re7 {[%emt 0:00:08]} 26. Rxe7 {[%emt 0:00:19]} Qxe7 {[%emt 0:00:00]} 27. Re1 {[%emt 0:00:10]} Qf6 {[%emt 0:00:20]} 28. Qe3 {[%emt 0:00:04]} Rd8 {[%emt 0:00:41][%cal Bf8d8,Bd8b8,Bb8b2][%mdl 32]} 29. Qxa7 {[%emt 0:00:07]} Qxf4 {[%emt 0:00:01]} 30. Qxb7 {[%emt 0:00:01]} Rb8 {[%emt 0:00:02]} 31. Qxc6 {[%emt 0:00:07] Re8+ would now be deadly.} Rxb2 {[%emt 0:00:02]} 32. Qe8+ {[%emt 0:00:36]} Kh7 {[%emt 0:00:02]} 33. Qe3 {[%emt 0:00:04]} Qf6 {[%emt 0:00:13]} (33... Qxe3 $142 34. Rxe3 Rb6) 34. a4 {[%emt 0:00:01]} Rb3 {[%emt 0:00:35]} 35. Qe4+ {[%emt 0:00:06]} g6 {[%emt 0:00:07][%cal Bg7g6,Bg6g5][%mdl 32]} 36. Nd5 {[%emt 0:00:01]} ({Stronger than} 36. Qxc4 Rxc3 37. Qe4 Rc5 $11) 36... Qc6 {[%emt 0:00:10]} (36... Qe6 37. Rc1 Qxe4 38. Nf6+ Kg7 39. Nxe4 Rb4) 37. Qe5 {[%emt 0:00:17] White threatens Nf6+ and mate.} g5 {[%emt 0:00:18]} 38. Ne7 {[%emt 0:00:34]} Qd7 {[%emt 0:01:11]} 39. Nf5 {[%emt 0:01:00][%csl Gf5][%cal Re5g7] White mates.} Kg6 {[%emt 0:00:06]} 40. g4 {[%emt 0:00:01][%csl Gf5][%cal Re5g7]} f6 {[%emt 0:00:28]} 41. Qe7 {[%emt 0:00:03] White took control after the opening.   Weighted Error Value: White=0.23 (precise) /Black=0.64  Loses game:     	---       	Black=1      Mistake:       	---       	Black=2      Inaccurate:     	White=1     	---        OK:         	White=15    	Black=8      Best:        	White=1     	---        Brilliant:      	White=1     	---} 1-0

[Event "CCT Chessable Masters Playoffs 2025"]
[Site "Online"]
[Date "2025.02.19"]
[Round "53"]
[White "Esipenko, Andrey"]
[Black "Nepomniachtchi, Ian"]
[Result "0-1"]
[Annotator "TA"]
[ECO "E20"]
[WhiteElo "2695"]
[BlackElo "2754"]
[PlyCount "98"]
[EventDate "2025.02.13"]
[EventType "k.o."]
[EventCountry "NET"]
[SourceTitle "playchess.com"]
[Source "ChessBase"]
[SourceQuality "1"]
[TimeControl "600"]

{[%evp 13,98,-4,-12,-24,27,27,37,37,26,31,20,15,27,27,32,27,31,28,43,17,17,5,16,0,1,6,0,0,0,0,0,-37,0,-6,0,-28,-24,-28,-34,-36,-35,-20,-25,-30,-22,-32,0,-13,0,-14,-10,0,0,-12,0,-59,-10,-18,-21,-27,-17,-55,0,-39,-38,-22,-29,-19,263,-2,0,-172,-153,-209,-211,-221,-197,-189,-35,-33,153,-581,-554,-1599,-1474,-29991,-29992]} 1. d4 {[%emt 0:00:00]} Nf6 {[%emt 0:00:01]} 2. c4 {[%emt 0:00:01]} e6 {[%emt 0:00:01]} 3. Nc3 {[%emt 0:00:01]} Bb4 {[%emt 0:00:00]} 4. Nf3 {[%emt 0:00:01]} d5 {[%emt 0:00:02]} 5. g3 {[%emt 0:00:07]} O-O {[%emt 0:00:07]} 6. Bg2 {[%emt 0:00:02]} dxc4 {[%emt 0:00:01]} 7. O-O {[%emt 0:00:11]} Nc6 {[%emt 0:00:03]} 8. a3 {[%emt 0:00:01] 8.Re1 is the hot move. E20: Nimzo-Indian: 4 g3 and 4 f3.} Bd6 {[%emt 0:00:22]} (8... Be7) 9. Qa4 $11 {[%emt 0:01:28][%cal Of1d1]} e5 {[%emt 0:00:12]} 10. Qxc4 {[%emt 0:00:35] White sacrificed a pawn. White is slightly better.} Nxd4 {[%emt 0:00:31]} 11. Nxd4 {[%emt 0:00:02] A sharp opening} exd4 {[%emt 0:00:00]} 12. Qxd4 {[%emt 0:00:03]} Qe7 $146 {[%emt 0:00:01]} (12... h6 13. Nb5 Qe7 14. Nxd6 cxd6 15. Bf4 Rd8 16. Rfe1 Be6 17. Rad1 a6 18. Bxd6 Qd7 {1-0 Urazayev,A (2445)-Vokhidov,S (2530) Titled Tuesday intern op 27th July blitz 2021 (11)}) 13. Bf4 {[%emt 0:00:54]} Bxf4 {[%emt 0:00:07]} 14. Qxf4 {[%emt 0:00:01]} c6 {[%emt 0:00:00]} 15. Rfd1 {[%emt 0:01:30]} Be6 {[%emt 0:00:04]} 16. Qe3 {[%emt 0:00:17]} Rfe8 {[%emt 0:00:05]} 17. h3 {[%emt 0:00:10]} h6 {[%emt 0:00:02]} 18. Rd2 {[%emt 0:00:06]} Qc7 {[%emt 0:00:03][%cal Oe6h3]} 19. Qc5 {[%emt 0:00:17]} Nd7 {[%emt 0:00:03]} 20. Qb4 {[%emt 0:00:19]} a5 {[%emt 0:00:05]} 21. Qd4 {[%emt 0:00:01]} Ne5 {[%emt 0:00:12]} 22. Qc5 {[%emt 0:00:11]} Nd7 {[%emt 0:00:43]} 23. Qd4 {[%emt 0:00:05]} Ne5 {[%emt 0:00:39]} 24. Qc5 {[%emt 0:00:04]} Rac8 {[%emt 0:00:01]} 25. b4 {[%emt 0:00:13]} Nc4 {[%emt 0:00:10]} 26. Rdd1 {[%emt 0:00:16]} b6 {[%emt 0:00:03]} 27. Qh5 {[%emt 0:00:00]} Qe7 {[%emt 0:00:21]} 28. bxa5 {[%emt 0:00:31]} Nxa5 {[%emt 0:00:02]} 29. a4 {[%emt 0:00:32]} Nc4 {[%emt 0:00:04]} 30. Qf3 {[%emt 0:00:04] Counterplay Black} Qb4 {[%emt 0:00:13]} 31. Rab1 {[%emt 0:00:05]} Qa5 {[%emt 0:00:02]} 32. g4 {[%emt 0:00:06]} Red8 {[%emt 0:00:06]} 33. Qg3 {[%emt 0:00:01]} Nd2 {[%emt 0:00:23]} 34. Rbc1 {[%emt 0:00:02]} (34. Rb2 $11 Nc4 35. Rbb1) 34... Nb3 {[%emt 0:00:03]} (34... Bb3 $15 35. Re1 Bxa4) 35. Rb1 {[%emt 0:00:03]} Nd4 {[%emt 0:00:03][%cal Oa5c3]} 36. Kh1 {[%emt 0:00:09]} c5 $36 {[%emt 0:00:02][%mdl 2048] Black fights for an advantage.} 37. h4 {[%emt 0:00:02]} Bb3 {[%emt 0:00:20]} (37... Rd7 $15) 38. Rdc1 {[%emt 0:00:06]} c4 {[%emt 0:00:16]} 39. g5 {[%emt 0:00:02]} hxg5 {[%emt 0:00:15]} (39... Bxa4 40. Ra1 (40. gxh6 Nf5 $11) 40... Nxe2 41. Nxe2 hxg5 42. Qxg5 (42. hxg5 Qd2 $16) 42... Qxg5 43. hxg5 $16) 40. hxg5 {[%emt 0:00:00]} Bc2 $2 {[%emt 0:00:01][%mdl 8192] [#]} (40... Nf5 $11 {and Black is okay.} 41. Qf4 Ne7) 41. Rb2 $2 {[%emt 0:00:05]} ({Only move:} 41. Rxc2 $1 $18 Nxc2 42. Rb5) 41... Bg6 {[%emt 0:00:01]} 42. e4 $2 {[%emt 0:00:07]} (42. Rd2 $11) 42... Nb3 $19 {[%emt 0:00:04]} 43. Rcc2 {[%emt 0:00:16]} (43. Rg1 $17) 43... Rd3 {[%emt 0:00:06]} 44. Qg4 {[%emt 0:00:01]} Re8 {[%emt 0:00:01]} 45. Nd5 {[%emt 0:00:00]} Qe1+ $2 {[%emt 0:00:07]} (45... Qxa4 46. Nxb6 Qa1+ 47. Kh2 $17) ({Black should play} 45... Nc5 $19 {Hoping for ...c3.} 46. Nf4 Rd4 (46... Qe1+ 47. Kh2 $17) 47. Nxg6 fxg6) 46. Kh2 $15 {[%emt 0:00:01]} Nd4 $2 {[%emt 0:00:02] [#]} (46... Bxe4 $2 47. Re2 (47. Nxb6 $2 Bxg2 48. Kxg2 Rd1 $19) 47... Bxd5 48. Rxe1 Rxe1 49. Qc8+ Kh7 50. Bxd5 Rxd5 51. Qxc4 Rxg5 52. Rxb3 $18) (46... Nc5 $15 {keeps the upper hand.} 47. Nf4 c3 48. Nxd3 cxb2 (48... Nxd3 $2 49. Rxb6 Nxf2 50. Qh4 $18) 49. Nxe1 b1=Q (49... b1=B $2 50. Rb2 $18)) 47. Ne7+ $2 {[%emt 0:00:04]} Rxe7 $19 {[%emt 0:00:45]} 48. Qc8+ {[%emt 0:00:00]} Kh7 {[%emt 0:00:01] ( -> ...Rxe4)} 49. Rxb6 {[%emt 0:00:42]} Rxe4 {[%emt 0:00:09] Weighted Error Value: White=0.61/Black=0.30  Loses game:     	White=2     	Black=1      Missed win:     	White=1     	---        Mistake:       	White=2     	Black=5      Inaccurate:     	White=6     	Black=1      OK:         	White=12    	Black=19     Best:        	White=1     	Black=3} 0-1